fUST/lending_fUST_20250311
["ID","MTS","AMOUNT","RATE_DAILY","PERIOD"]
[355899009,1741695059041,-795.07,0.00034246,7]
[355899010,1741695059050,-500.0,0.00034246,7]
[355899011,1741695059059,-500.0,0.00034246,7]
[355899012,1741695059073,-617.03,0.00034246,7]
[355899013,1741695059082,-1018.72,0.00034246,7]
[355899014,1741695059092,-500.0,0.00034246,7]
[355899015,1741695059102,-908.92,0.00034246,7]
[355899016,1741695059113,-1737.97,0.00034246,7]
[355899017,1741695059123,-500.0,0.00034246,7]
[355899018,1741695059133,-826.41,0.00034246,7]
[355899019,1741695059144,-804.08,0.00034246,7]
[355899020,1741695059154,-1673.2,0.00034246,7]
[355899021,1741695059164,-500.0,0.00034246,7]
[355899022,1741695059174,-779.12,0.00034246,7]
[355899023,1741695059184,-796.75,0.00034246,7]
[355899024,1741695059199,-500.0,0.00034246,7]
[355899025,1741695059209,-1274.5,0.00034246,7]
[355899026,1741695059219,-500.0,0.00034246,7]
[355899027,1741695059228,-195.37268729,0.00034246,7]
[355899028,1741695059239,-537.54545533,0.00034246,7]
[355899029,1741695059249,-500.0,0.00034246,7]
[355899030,1741695059258,-851.15,0.00034246,7]
[355899031,1741695059269,-500.0,0.00034246,7]
[355899032,1741695059278,-500.0,0.00034246,7]
[355899033,1741695059288,-582.77344867,0.00034246,7]
[355899034,1741695059298,-1003.93,0.00034246,7]
[355899035,1741695059310,-765.82,0.00034246,7]
[355899036,1741695059319,-637.49,0.00034246,7]
[355899037,1741695059328,-151.0,0.00034246,14]
[355899038,1741695059339,-151.0,0.00034246,14]
[355899039,1741695059349,-2150.15,0.00034246,7]
[355899040,1741695059359,-500.0,0.00034246,7]
[355899041,1741695059371,-2766.58,0.00034246,7]
[355899042,1741695059380,-500.0,0.00034246,7]
[355899043,1741695059391,-500.0,0.00034246,7]
[355899044,1741695059401,-750.37,0.00034246,7]
[355899045,1741695059411,-413.45347343,0.00034246,7]
[355899046,1741695059421,-920.19,0.00034246,7]
[355899047,1741695059430,-500.0,0.00034246,7]
[355899048,1741695059441,-724.74,0.00034246,7]
[355899049,1741695059450,-500.0,0.00034246,7]
[355899050,1741695059460,-500.0,0.00034246,7]
[355899051,1741695059471,-663.78,0.00034246,7]
[355899052,1741695059480,-500.0,0.00034246,7]
[355899053,1741695059490,-500.0,0.00034246,7]
[355899054,1741695059499,-500.0,0.00034246,7]
[355899055,1741695059508,-500.0,0.00034246,7]
[355899056,1741695059518,-500.0,0.00034246,7]
[355899057,1741695059528,-795.7,0.00034246,7]
[355899058,1741695059539,-1184.43,0.00034246,7]
[355899059,1741695059549,-500.0,0.00034246,7]
[355899060,1741695059559,-821.86,0.00034246,7]
[355899061,1741695059569,-258.53344888,0.00034246,7]
[355899062,1741695059578,-500.0,0.00034246,7]
[355899063,1741695059588,-500.0,0.00034246,7]
[355899064,1741695059597,-565.85,0.00034246,7]
[355899065,1741695059606,-500.0,0.00034246,7]
[355899066,1741695059616,-500.0,0.00034246,7]
[355899067,1741695059626,-840.8,0.00034246,7]
[355899068,1741695059636,-500.0,0.00034246,7]
[355899069,1741695059646,-3149.47,0.00034246,7]
[355899070,1741695059657,-577.41754979,0.00034246,7]
[355899071,1741695059667,-1452.45,0.00034246,7]
[355899072,1741695059677,-500.0,0.00034246,7]
[355899073,1741695059691,-500.0,0.00034246,7]
[355899074,1741695059710,-626.6,0.00034246,7]
[355899075,1741695059728,-3187.87,0.00034246,7]
[355899076,1741695059747,-500.0,0.00034246,7]
[355899077,1741695059766,-540.88,0.00034246,7]
[355899078,1741695059787,-500.0,0.00034246,7]
[355899079,1741695059808,-767.86,0.00034246,7]
[355899080,1741695059826,-942.67,0.00034246,7]
[355899081,1741695059845,-636.21,0.00034246,7]
[355899082,1741695059859,-533.81258953,0.00034246,7]
[355899083,1741695059876,-151.0,0.00034246,14]
[355899084,1741695059895,-151.0,0.00034246,14]
[355899085,1741695059913,-500.0,0.00034246,7]
[355899086,1741695059932,-1064.79,0.00034246,7]
[355899087,1741695059945,-677.39,0.00034246,7]
[355899088,1741695059965,-500.0,0.00034246,7]
[355899089,1741695059980,-1153.94,0.00034246,7]
[355899090,1741695059998,-151.0,0.00034246,14]
[355899091,1741695060011,-500.0,0.00034246,7]
[355899092,1741695060027,-18956.44,0.00034246,7]
[355899093,1741695060045,-500.0,0.00034246,7]
[355899094,1741695060062,-586.88531389,0.00034246,7]
[355899095,1741695060081,-500.0,0.00034246,7]
[355899096,1741695060097,-649.68,0.00034246,7]
[355899097,1741695060115,-706.44,0.00034246,3]
[355899098,1741695060133,-686.45,0.00034246,7]
[355899099,1741695060150,-803.3,0.00034246,7]
[355899100,1741695060166,-756.98,0.00034246,7]
[355899101,1741695060184,-500.0,0.00034246,7]
[355899102,1741695060200,-500.0,0.00034246,7]
[355899103,1741695060222,-882.99,0.00034246,7]
[355899104,1741695060238,-564.47,0.00034246,7]
[355899105,1741695060255,-5057.55,0.00034246,7]
[355899106,1741695060270,-1673.37,0.00034246,7]
[355899107,1741695060288,-815.09,0.00034246,7]
[355899108,1741695060305,-500.0,0.00034246,7]
[355899109,1741695060322,-1408.71,0.00034246,7]
[355899110,1741695060338,-664.03,0.00034246,7]
[355899111,1741695060353,-1305.95,0.00034246,7]
[355899112,1741695060368,-500.0,0.00034246,7]
[355899113,1741695060383,-6781.22,0.00034246,7]
[355899114,1741695060397,-926.55,0.00034246,7]
[355899115,1741695060413,-1332.7,0.00034246,7]
[355899116,1741695060429,-1286.83,0.00034246,7]
[355899117,1741695060445,-500.0,0.00034246,7]
[355899118,1741695060460,-500.0,0.00034246,7]
[355899119,1741695060478,-736.82,0.00034246,7]
[355899120,1741695060494,-500.0,0.00034246,7]
[355899121,1741695060510,-1393.62,0.00034246,7]
[355899122,1741695060526,-977.22,0.00034246,7]
[355899123,1741695060544,-1381.89,0.00034246,7]
[355899124,1741695060559,-1041.53,0.00034246,7]
[355899125,1741695060576,-169173.3,0.00034246,7]
[355899126,1741695060591,-1239.43,0.00034246,7]
[355899127,1741695060606,-500.0,0.00034246,7]
[355899128,1741695060621,-500.0,0.00034246,7]
[355899129,1741695060636,-500.0,0.00034246,7]
[355899130,1741695060652,-1257.39,0.00034246,7]
[355899131,1741695060668,-500.0,0.00034246,7]
[355899132,1741695060683,-585.22,0.00034246,7]
[355899133,1741695060699,-3412.74,0.00034246,7]
[355899134,1741695060715,-500.0,0.00034246,7]
[355899135,1741695060731,-764.76,0.00034246,7]
[355899136,1741695060747,-1042.92,0.00034246,7]
[355899137,1741695060761,-516.26,0.00034246,7]
[355899138,1741695060777,-1047.73,0.00034246,7]
[355899139,1741695060794,-500.0,0.00034246,7]
[355899140,1741695060810,-1059.9,0.00034246,7]
[355899141,1741695060825,-622.95,0.00034246,7]
[355899142,1741695060839,-500.0,0.00034246,7]
[355899143,1741695060855,-3013.85,0.00034246,7]
[355899144,1741695060870,-500.0,0.00034246,7]
[355899145,1741695060886,-500.0,0.00034246,7]
[355899146,1741695060903,-500.0,0.00034246,7]
[355899147,1741695060919,-667.39,0.00034246,7]
[355899148,1741695060935,-509.65,0.00034246,7]
[355899149,1741695060951,-670.74,0.00034246,7]
[355899150,1741695060961,-1582.72,0.00034246,7]
[355899151,1741695060972,-5626.47,0.00034246,7]
[355899152,1741695061207,-500.0,0.00034246,7]
[355899153,1741695061218,-500.0,0.00034246,7]
[355899154,1741695061228,-500.0,0.00034246,7]
[355899155,1741695061239,-603.07,0.00034246,7]
[355899156,1741695061249,-564.17,0.00034246,7]
[355899157,1741695061259,-843.1,0.00034246,7]
[355899158,1741695061270,-581.91,0.00034246,7]
[355899159,1741695061280,-500.0,0.00034246,7]
[355899160,1741695061291,-3153.02,0.00034246,7]
[355899161,1741695061302,-500.0,0.00034246,7]
[355899162,1741695061312,-6141.32,0.00034246,7]
[355899163,1741695061322,-500.0,0.00034246,7]
[355899164,1741695061332,-500.0,0.00034246,7]
[355899165,1741695061342,-521.7306749,0.00034246,7]
[355899166,1741695061352,-4009.94,0.00034246,7]
[355899167,1741695061362,-500.0,0.00034246,7]
[355899168,1741695061371,-3615.33,0.00034246,7]
[355899169,1741695061380,-769.89,0.00034246,7]
[355899170,1741695061390,-1319.72,0.00034246,7]
[355899171,1741695061399,-500.0,0.00034246,7]
[355899172,1741695061409,-1549.54,0.00034246,7]
[355899173,1741695061420,-1201.25,0.00034246,7]
[355899174,1741695061430,-540.93,0.00034246,7]
[355899175,1741695061440,-1267.56,0.00034246,7]
[355899176,1741695061450,-1271.42,0.00034246,7]
[355899177,1741695061460,-736.19,0.00034246,7]
[355899178,1741695061470,-500.0,0.00034246,7]
[355899179,1741695061480,-500.0,0.00034246,7]
[355899180,1741695061489,-7024.08,0.00034246,7]
[355899181,1741695061499,-993.56,0.00034246,7]
[355899182,1741695061509,-732.5,0.00034246,7]
[355899183,1741695061519,-541.7,0.00034246,7]
[355899184,1741695061529,-980.96,0.00034246,7]
[355899185,1741695061540,-500.0,0.00034246,7]
[355899186,1741695061550,-1275.08,0.00034246,7]
[355899187,1741695061560,-986.09,0.00034246,7]
[355899188,1741695061570,-770.93,0.00034246,7]
[355899189,1741695061580,-988.89,0.00034246,7]
[355899190,1741695061590,-1935.18,0.00034246,7]
[355899191,1741695061600,-500.0,0.00034246,7]
[355899192,1741695061610,-1374.06,0.00034246,7]
[355899193,1741695061620,-500.0,0.00034246,7]
[355899194,1741695061630,-500.0,0.00034246,7]
[355899195,1741695061640,-500.0,0.00034246,7]
[355899196,1741695061650,-745.04,0.00034246,7]
[355899197,1741695061660,-5601.81,0.00034246,7]
[355899198,1741695061673,-1155.41,0.00034246,7]
[355899199,1741695061683,-829.17,0.00034246,7]
[355899200,1741695061693,-500.0,0.00034246,7]
[355899201,1741695061704,-733.52,0.00034246,7]
[355899202,1741695061714,-962.34,0.00034246,7]
[355899203,1741695061723,-639.39,0.00034246,7]
[355899204,1741695061733,-500.0,0.00034246,7]
[355899205,1741695061743,-1089.45,0.00034246,7]
[355899206,1741695061753,-5880.08,0.00034246,7]
[355899207,1741695061763,-3049.91,0.00034246,7]
[355899208,1741695061773,-811.41,0.00034246,7]
[355899209,1741695061782,-784.07,0.00034246,7]
[355899210,1741695061793,-500.0,0.00034246,7]
[355899211,1741695061804,-500.0,0.00034246,7]
[355899212,1741695061813,-500.0,0.00034246,7]
[355899213,1741695061822,-2787.16,0.00034246,7]
[355899214,1741695061832,-500.0,0.00034246,7]
[355899215,1741695061841,-555.22,0.00034246,7]
[355899216,1741695061851,-500.0,0.00034246,7]
[355899217,1741695061860,-1232.85,0.00034246,7]
[355899218,1741695061870,-12621.59,0.00034246,2]
[355899219,1741695061879,-500.0,0.00034246,7]
[355899220,1741695061889,-750.56,0.00034246,7]
[355899221,1741695061899,-500.0,0.00034246,7]
[355899222,1741695061909,-500.0,0.00034246,7]
[355899223,1741695061919,-2932.36,0.00034246,7]
[355899224,1741695061929,-500.0,0.00034246,7]
[355899225,1741695061939,-500.0,0.00034246,7]
[355899226,1741695061950,-500.0,0.00034246,7]
[355899227,1741695061960,-787.55,0.00034246,7]
[355899228,1741695061969,-500.13,0.00034246,2]
[355899229,1741695061979,-1927.93,0.00034246,7]
[355899230,1741695061990,-880.5,0.00034246,7]
[355899231,1741695062000,-954.03,0.00034246,7]
[355899232,1741695062010,-2054.61,0.00034246,7]
[355899233,1741695062020,-500.0,0.00034246,7]
[355899234,1741695062030,-832.07037156,0.00034278,2]
[355899235,1741695062042,-156.587,0.00034331,2]
[355899236,1741695062053,-862.8569753,0.00034333,2]
[355899237,1741695062064,-894.78268339,0.00034388,2]
[355899238,1741695062074,-927.88964268,0.00034443,2]
[355899239,1741695062084,-962.22155946,0.00034498,2]
[355899240,1741695062093,-250.0,0.000345,7]
[355899241,1741695062104,-250.0,0.000345,7]
[355899242,1741695062113,-250.0,0.000345,7]
[355899243,1741695062123,-250.0,0.000345,7]
[355899244,1741695062133,-250.0,0.000345,7]
[355899245,1741695062143,-250.0,0.000345,7]
[355899246,1741695062153,-250.0,0.000345,7]
[355899247,1741695062163,-151.0,0.00034519,14]
[355899248,1741695062172,-569.63256716,0.0003452,7]
[355899249,1741695062182,-500.0,0.0003452,5]
[355899250,1741695062203,-500.0,0.0003452,7]
[355899251,1741695062215,-625.55,0.0003452,7]
[355899252,1741695062225,-553.95230936,0.0003452,7]
[355899253,1741695062234,-500.0,0.0003452,7]
[355899254,1741695062245,-673.91,0.0003452,7]
[355899255,1741695062256,-546.45055171,0.0003452,7]
[355899256,1741695062266,-500.0,0.0003452,7]
[355899257,1741695062278,-500.0,0.0003452,7]
[355899258,1741695062291,-500.0,0.0003452,7]
[355899259,1741695062300,-500.0,0.0003452,7]
[355899260,1741695062310,-500.0,0.0003452,7]
[355899261,1741695062319,-500.0,0.0003452,7]
[355899262,1741695062329,-508.29461106,0.0003452,7]
[355899263,1741695062338,-500.0,0.0003452,7]
[355899264,1741695062347,-702.78,0.0003452,7]
[355899265,1741695062357,-500.0,0.0003452,7]
[355899266,1741695062367,-500.0,0.0003452,7]
[355899267,1741695062376,-557.89,0.0003452,7]
[355899268,1741695062385,-521.71,0.0003452,7]
[355899269,1741695062395,-500.0,0.0003452,7]
[355899270,1741695062404,-500.0,0.0003452,7]
[355899271,1741695062415,-908.05,0.0003452,7]
[355899272,1741695062424,-500.0,0.0003452,7]
[355899273,1741695062434,-865.89,0.0003452,7]
[355899274,1741695062443,-500.0,0.0003452,7]
[355899275,1741695062452,-500.0,0.0003452,7]
[355899276,1741695062462,-500.0,0.0003452,7]
[355899277,1741695062471,-754.14,0.0003452,7]
[355899278,1741695062480,-1673.35,0.0003452,7]
[355899279,1741695062489,-500.0,0.0003452,7]
[355899280,1741695062498,-677.07,0.0003452,7]
[355899281,1741695062508,-500.0,0.0003452,7]
[355899282,1741695062518,-1023.55,0.0003452,7]
[355899283,1741695062527,-500.0,0.0003452,7]
[355899284,1741695062538,-500.0,0.0003452,7]
[355899285,1741695062548,-1082.92,0.0003452,7]
[355899286,1741695062559,-873.54,0.0003452,7]
[355899287,1741695062568,-500.0,0.0003452,7]
[355899288,1741695062578,-519.6,0.0003452,7]
[355899289,1741695062587,-500.0,0.0003452,7]
[355899290,1741695062597,-500.0,0.0003452,7]
[355899291,1741695062607,-500.0,0.0003452,2]
[355899292,1741695062617,-500.0,0.0003452,7]
[355899293,1741695062626,-336.412385,0.0003452,14]
[355899294,1741695062636,-500.0,0.0003452,2]
[355899295,1741695062646,-1095.93,0.0003452,7]
[355899296,1741695062655,-336.412379,0.0003452,14]
[355899297,1741695062666,-695.17,0.0003452,7]
[355899298,1741695062675,-614.38,0.0003452,7]
[355899299,1741695062685,-500.0,0.0003452,7]
[355899300,1741695062695,-551.27,0.0003452,7]
[355899301,1741695062705,-1330.09,0.0003452,7]
[355899302,1741695062714,-500.0,0.0003452,7]
[355899303,1741695062724,-931.03,0.0003452,7]
[355899304,1741695062734,-500.0,0.0003452,7]
[355899305,1741695062744,-500.0,0.0003452,7]
[355899306,1741695062753,-591.82,0.0003452,7]
[355899307,1741695062763,-500.0,0.0003452,7]
[355899308,1741695062772,-500.0,0.0003452,7]
[355899309,1741695062782,-500.0,0.0003452,7]
[355899310,1741695062795,-933.31,0.0003452,7]
[355899311,1741695062804,-500.0,0.0003452,7]
[355899312,1741695062814,-500.0,0.0003452,7]
[355899313,1741695062823,-617.03,0.0003452,7]
[355899314,1741695062833,-1018.72,0.0003452,7]
[355899315,1741695062842,-795.07,0.0003452,7]
[355899316,1741695062851,-500.0,0.0003452,7]
[355899317,1741695062860,-908.92,0.0003452,7]
[355899318,1741695062870,-1737.97,0.0003452,7]
[355899319,1741695062879,-500.0,0.0003452,7]
[355899320,1741695062888,-826.41,0.0003452,7]
[355899321,1741695062898,-804.08,0.0003452,7]
[355899322,1741695062907,-1673.2,0.0003452,7]
[355899323,1741695062917,-500.0,0.0003452,7]
[355899324,1741695062926,-779.12,0.0003452,7]
[355899325,1741695062936,-796.75,0.0003452,7]
[355899326,1741695062946,-500.0,0.0003452,7]
[355899327,1741695062956,-1274.5,0.0003452,7]
[355899328,1741695062965,-500.0,0.0003452,7]
[355899329,1741695062975,-500.0,0.0003452,7]
[355899330,1741695062985,-851.15,0.0003452,7]
[355899331,1741695062995,-500.0,0.0003452,7]
[355899332,1741695063005,-500.0,0.0003452,7]
[355899333,1741695063014,-1003.93,0.0003452,7]
[355899334,1741695063024,-765.82,0.0003452,7]
[355899335,1741695063034,-637.49,0.0003452,7]
[355899336,1741695063046,-2150.15,0.0003452,7]
[355899337,1741695063056,-500.0,0.0003452,7]
[355899338,1741695063066,-2766.58,0.0003452,7]
[355899339,1741695063076,-500.0,0.0003452,7]
[355899340,1741695063087,-500.0,0.0003452,7]
[355899341,1741695063097,-750.37,0.0003452,7]
[355899342,1741695063106,-920.19,0.0003452,7]
[355899343,1741695063117,-500.0,0.0003452,7]
[355899344,1741695063127,-724.74,0.0003452,7]
[355899345,1741695063137,-500.0,0.0003452,7]
[355899346,1741695063147,-500.0,0.0003452,7]
[355899347,1741695063157,-663.78,0.0003452,7]
[355899348,1741695063166,-500.0,0.0003452,7]
[355899349,1741695063176,-500.0,0.0003452,7]
[355899350,1741695063186,-500.0,0.0003452,7]
[355899351,1741695063201,-250.38,0.0003452,7]
[355899352,1741695063211,-500.0,0.0003452,7]
[355899353,1741695063221,-795.7,0.0003452,7]
[355899354,1741695063231,-1184.43,0.0003452,7]
[355899355,1741695063241,-500.0,0.0003452,7]
[355899356,1741695063251,-821.86,0.0003452,7]
[355899357,1741695063261,-500.0,0.0003452,7]
[355899358,1741695063271,-500.0,0.0003452,7]
[355899359,1741695063282,-565.85,0.0003452,7]
[355899360,1741695063293,-500.0,0.0003452,7]
[355899361,1741695063303,-500.0,0.0003452,7]
[355899362,1741695063312,-840.8,0.0003452,7]
[355899363,1741695063321,-500.0,0.0003452,7]
[355899364,1741695063331,-3149.47,0.0003452,7]
[355899365,1741695063341,-1452.45,0.0003452,7]
[355899366,1741695063351,-500.0,0.0003452,7]
[355899367,1741695063361,-305.97503463,0.0003452,7]
[355899368,1741695063371,-626.6,0.0003452,7]
[355899369,1741695063380,-3187.87,0.0003452,7]
[355899370,1741695063390,-500.0,0.0003452,7]
[355899371,1741695063399,-540.88,0.0003452,7]
[355899372,1741695063409,-605.07397165,0.0003452,7]
[355899373,1741695063418,-767.86,0.0003452,7]
[355899374,1741695063428,-942.67,0.0003452,7]
[355899375,1741695063438,-636.21,0.0003452,7]
[355899376,1741695063448,-151.0,0.0003452,14]
[355899377,1741695063458,-500.0,0.0003452,7]
[355899378,1741695063467,-1064.79,0.0003452,7]
[355899379,1741695063477,-677.39,0.0003452,7]
[355899380,1741695063487,-500.0,0.0003452,7]
[355899381,1741695063497,-1153.94,0.0003452,7]
[355899382,1741695063507,-500.0,0.0003452,7]
[355899383,1741695063518,-18956.44,0.0003452,7]
[355899384,1741695063529,-500.0,0.0003452,7]
[355899385,1741695063541,-500.0,0.0003452,7]
[355899386,1741695063551,-649.68,0.0003452,7]
[355899387,1741695063562,-706.44,0.0003452,3]
[355899388,1741695063576,-686.45,0.0003452,7]
[355899389,1741695063587,-803.3,0.0003452,7]
[355899390,1741695063598,-756.98,0.0003452,7]
[355899391,1741695063608,-500.0,0.0003452,7]
[355899392,1741695063761,-500.0,0.0003452,7]
[355899393,1741695063776,-882.99,0.0003452,7]
[355899394,1741695063788,-564.47,0.0003452,7]
[355899395,1741695063798,-5057.55,0.0003452,7]
[355899396,1741695063808,-1673.37,0.0003452,7]
[355899397,1741695063819,-815.09,0.0003452,7]
[355899398,1741695063829,-500.0,0.0003452,7]
[355899399,1741695063839,-1408.71,0.0003452,7]
[355899400,1741695063848,-664.03,0.0003452,7]
[355899401,1741695063858,-1305.95,0.0003452,7]
[355899402,1741695063868,-500.0,0.0003452,7]
[355899403,1741695063878,-6781.22,0.0003452,7]
[355899404,1741695063887,-926.55,0.0003452,7]
[355899405,1741695063897,-1332.7,0.0003452,7]
[355899406,1741695063907,-1286.83,0.0003452,7]
[355899407,1741695063916,-500.0,0.0003452,7]
[355899408,1741695063927,-500.0,0.0003452,7]
[355899409,1741695063937,-736.82,0.0003452,7]
[355899410,1741695063947,-500.0,0.0003452,7]
[355899411,1741695063956,-1393.62,0.0003452,7]
[355899412,1741695063966,-977.22,0.0003452,7]
[355899413,1741695063976,-1381.89,0.0003452,7]
[355899414,1741695063986,-1041.53,0.0003452,7]
[355899415,1741695063996,-169173.3,0.0003452,7]
[355899416,1741695064005,-1239.43,0.0003452,7]
[355899417,1741695064015,-500.0,0.0003452,7]
[355899418,1741695064025,-500.0,0.0003452,7]
[355899419,1741695064034,-500.0,0.0003452,7]
[355899420,1741695064046,-1257.39,0.0003452,7]
[355899421,1741695064057,-500.0,0.0003452,7]
[355899422,1741695064067,-3412.74,0.0003452,7]
[355899423,1741695064077,-500.0,0.0003452,7]
[355899424,1741695064086,-764.76,0.0003452,7]
[355899425,1741695064097,-1042.92,0.0003452,7]
[355899426,1741695064107,-516.26,0.0003452,7]
[355899427,1741695064117,-1047.73,0.0003452,7]
[355899428,1741695064127,-500.0,0.0003452,7]
[355899429,1741695064137,-1059.9,0.0003452,7]
[355899430,1741695064147,-622.95,0.0003452,7]
[355899431,1741695064156,-500.0,0.0003452,7]
[355899432,1741695064166,-3013.85,0.0003452,7]
[355899433,1741695064176,-500.0,0.0003452,7]
[355899434,1741695064186,-207.12605721,0.0003452,7]
[355899435,1741695064200,-500.0,0.0003452,7]
[355899436,1741695064210,-667.39,0.0003452,7]
[355899437,1741695064220,-509.65,0.0003452,7]
[355899438,1741695064230,-670.74,0.0003452,7]
[355899439,1741695064242,-1582.72,0.0003452,7]
[355899440,1741695064252,-5626.47,0.0003452,7]
[355899441,1741695064262,-500.0,0.0003452,7]
[355899442,1741695064272,-500.0,0.0003452,7]
[355899443,1741695064284,-500.33426862,0.0003452,7]
[355899444,1741695064299,-603.07,0.0003452,7]
[355899445,1741695064309,-564.17,0.0003452,7]
[355899446,1741695064319,-843.1,0.0003452,7]
[355899447,1741695064329,-581.91,0.0003452,7]
[355899448,1741695064339,-3153.02,0.0003452,7]
[355899449,1741695064349,-500.0,0.0003452,7]
[355899450,1741695064359,-500.0,0.0003452,7]
[355899451,1741695064368,-6141.32,0.0003452,7]
[355899452,1741695064378,-500.0,0.0003452,7]
[355899453,1741695064387,-500.0,0.0003452,7]
[355899454,1741695064397,-4009.94,0.0003452,7]
[355899455,1741695064408,-500.0,0.0003452,7]
[355899456,1741695064418,-3615.33,0.0003452,7]
[355899457,1741695064428,-769.89,0.0003452,7]
[355899458,1741695064439,-1319.72,0.0003452,7]
[355899459,1741695064449,-500.0,0.0003452,7]
[355899460,1741695064459,-1549.54,0.0003452,7]
[355899461,1741695064470,-1201.25,0.0003452,7]
[355899462,1741695064480,-540.93,0.0003452,7]
[355899463,1741695064490,-1267.56,0.0003452,7]
[355899464,1741695064500,-1271.42,0.0003452,7]
[355899465,1741695064510,-736.19,0.0003452,7]
[355899466,1741695064520,-500.0,0.0003452,7]
[355899467,1741695064529,-500.0,0.0003452,7]
[355899468,1741695064542,-7024.08,0.0003452,7]
[355899469,1741695064552,-732.5,0.0003452,7]
[355899470,1741695064561,-993.56,0.0003452,7]
[355899471,1741695064571,-541.7,0.0003452,7]
[355899472,1741695064582,-980.96,0.0003452,7]
[355899473,1741695064592,-532.0321476,0.0003452,7]
[355899474,1741695064602,-1275.08,0.0003452,7]
[355899475,1741695064612,-986.09,0.0003452,7]
[355899476,1741695064622,-770.93,0.0003452,7]
[355899477,1741695064633,-988.89,0.0003452,7]
[355899478,1741695064643,-1935.18,0.0003452,7]
[355899479,1741695064652,-500.0,0.0003452,7]
[355899480,1741695064662,-1374.06,0.0003452,7]
[355899481,1741695064672,-500.0,0.0003452,7]
[355899482,1741695064681,-500.0,0.0003452,7]
[355899483,1741695064691,-461.77661489,0.0003452,7]
[355899484,1741695064700,-745.04,0.0003452,7]
[355899485,1741695064709,-5601.81,0.0003452,7]
[355899486,1741695064719,-1155.41,0.0003452,7]
[355899487,1741695064729,-829.17,0.0003452,7]
[355899488,1741695064738,-500.0,0.0003452,7]
[355899489,1741695064747,-733.52,0.0003452,7]
[355899490,1741695064757,-962.34,0.0003452,7]
[355899491,1741695064766,-639.39,0.0003452,7]
[355899492,1741695064775,-500.0,0.0003452,7]
[355899493,1741695064785,-1089.45,0.0003452,7]
[355899494,1741695064796,-5880.08,0.0003452,7]
[355899495,1741695064805,-3049.91,0.0003452,7]
[355899496,1741695064815,-811.41,0.0003452,7]
[355899497,1741695064824,-784.07,0.0003452,7]
[355899498,1741695064834,-500.0,0.0003452,7]
[355899499,1741695064844,-500.0,0.0003452,7]
[355899500,1741695064854,-500.0,0.0003452,7]
[355899501,1741695064864,-2787.16,0.0003452,7]
[355899502,1741695064874,-500.0,0.0003452,7]
[355899503,1741695064883,-555.22,0.0003452,7]
[355899504,1741695064893,-500.0,0.0003452,7]
[355899505,1741695064902,-1232.85,0.0003452,7]
[355899506,1741695064912,-12621.59,0.0003452,2]
[355899507,1741695064921,-500.0,0.0003452,7]
[355899508,1741695064930,-750.56,0.0003452,7]